fUSD/lending_fUSD_20250416
["ID","MTS","AMOUNT","RATE_DAILY","PERIOD"]
[358139218,1744761652262,156.93,0.00013995,2]
[358139219,1744761730143,250.0,0.00017,2]
[358139220,1744761770553,250.0,0.00017,2]
[358139221,1744761843748,-188.0,0.0001754,2]
[358139222,1744761984701,500.0,0.000265,120]
[358139224,1744762139311,769.87,0.00015369,2]
[358139235,1744762206664,-17.71627827,0.0001754,2]
[358139236,1744762206690,-140.2663679,0.00017565,2]
[358139238,1744762231697,-109.7336321,0.00017565,2]
[358139239,1744762231708,-769.87,0.00017632,2]
[358139240,1744762231718,-447.32,0.00017642,2]
[358139241,1744762231727,-161.99,0.00017689,2]
[358139243,1744762231738,-300.0,0.00017899,2]
[358139244,1744762231747,-300.0,0.00017899,2]
[358139245,1744762231757,-741.9112,0.000179,2]
[358139246,1744762231766,-6013.5263,0.000179,2]
[358139247,1744762231776,-2677.5967,0.000179,2]
[358139248,1744762231786,-182.38743638,0.000179,2]
[358139249,1744762231796,-173.3835706,0.0001791,2]
[358139250,1744762231805,-2841.1275569,0.00017957,2]
[358139251,1744762231817,-639.1315495,0.00017957,2]
[358139252,1744762231828,-484.7408936,0.00017957,2]
[358139253,1744762231842,-152.0,0.00017957,2]
[358139254,1744762231852,-500.0,0.00017973,2]
[358139255,1744762231862,-2785.4331994,0.00017986,2]
[358139256,1744762231884,-151.0,0.00017989,2]
[358139257,1744762231894,-151.0,0.00017989,2]
[358139258,1744762231904,-668.65185757,0.00017989,2]
[358139259,1744762231914,-207.4,0.00017989,2]
[358139260,1744762231923,-162.380719,0.00017989,2]
[358139261,1744762231934,-456.71776008,0.0001799,2]
[358139262,1744762231944,-300.0,0.00017999,2]
[358139263,1744762231954,-300.0,0.00017999,2]
[358139264,1744762231964,-300.0,0.00017999,2]
[358139265,1744762231973,-300.0,0.00017999,2]
[358139266,1744762231983,-500.0,0.00017999,2]
[358139267,1744762231993,-150.0,0.00017999,2]
[358139268,1744762232003,-500.0,0.00017999,2]
[358139269,1744762232014,-1003.8932,0.00017999,2]
[358139270,1744762232024,-10739.00864906,0.00018,2]
[358139272,1744762232037,-5601.62938366,0.00018,2]
[358139287,1744762232177,-290.00835356,0.00018,2]
[358139314,1744762237696,-835.835,0.00018,2]
[358139319,1744762237893,-9178.71876107,0.00018,2]
[358139320,1744762237905,-62399.99842857,0.00018,2]
[358139384,1744762240199,-0.01760018,0.00017799,2]
[358139385,1744762240243,-187.98239982,0.00017799,2]
[358139386,1744762240253,-256.63828137,0.00018,2]
[358139387,1744762240264,-295.84050869,0.00018,2]
[358139388,1744762240326,-1325.41265323,0.00018,2]
[358139467,1744762245193,-100529.71006745,0.00018,2]
[358139586,1744762247755,-156.0452135,0.0001791,2]
[358139587,1744762247764,-117.93679026,0.00018,2]
[358139588,1744762247779,-1133.97,0.00018,2]
[358139589,1744762247822,-5019.18705,0.00018,2]
[358139590,1744762247834,-1254.935454,0.00018,2]
[358139591,1744762247846,-1513.23001038,0.00018,2]
[358139592,1744762484142,156.14,0.00017446,2]
[358139593,1744762542081,1000.0,0.000174,2]
[358139594,1744762646357,190.91,0.00017446,2]
[358139595,1744762705488,500.0,0.000174,2]
[358139596,1744762856439,311.08,0.00017325,2]
[358139597,1744763008151,200.0,0.00017325,7]
[358139598,1744763023396,19051.55,0.00017325,2]
[358139600,1744763191061,597.29,0.00017327,2]
[358139601,1744763235057,211.15349434,0.00015,2]
[358139602,1744763296112,-230.87752218,0.00017685,2]
[358139606,1744763313444,748.33,0.00015334,2]
[358139607,1744763314453,-218.99673129,0.00017598,2]
[358139616,1744763346245,-529.33326871,0.00017598,2]
[358139617,1744763346274,-71.13247782,0.00017685,2]
[358139618,1744763346307,-291.92314841,0.00017699,2]
[358139627,1744763409139,200.0,0.00017297,2]
[358139641,1744763431732,-250.0,0.00017704,2]
[358139643,1744763431742,-779.52,0.00017731,2]
[358139645,1744763431750,-182.69343337,0.00017799,2]
[358139647,1744763431760,-1466.618,0.00017899,2]
[358139649,1744763431769,-300.0,0.00017899,2]
[358139650,1744763431777,-300.0,0.00017899,2]
[358139651,1744763431786,-962.73623011,0.00017899,2]
[358139652,1744763431795,-6093.78508445,0.000179,2]
[358139653,1744763431813,-640.83736948,0.000179,2]
[358139654,1744763431824,-834.43,0.000179,2]
[358139655,1744763431834,-2079.99997,0.000179,2]
[358139656,1744763431849,-7900.0,0.000179,2]
[358139657,1744763431860,-1539.6573271,0.000179,2]
[358139658,1744763431871,-14710.36585169,0.000179,2]
[358139659,1744763431881,-2719.5216969,0.000179,2]
[358139660,1744763431891,-2339.071,0.000179,2]
[358139661,1744763431902,-392.77298209,0.000179,2]
[358139662,1744763431921,-1514.69821829,0.000179,2]
[358139663,1744763431929,-286.7118,0.000179,2]
[358139664,1744763431938,-462.595,0.000179,2]
[358139665,1744763431953,-868.8568,0.000179,2]
[358139666,1744763431962,-178.67782644,0.000179,2]
[358139667,1744763431970,-1811.48943848,0.000179,2]
[358139668,1744763431979,-3343.82466673,0.000179,2]
[358139669,1744763431988,-260.84466006,0.000179,2]
[358139670,1744763431997,-167.2524026,0.0001791,2]
[358139671,1744763432006,-483.70950215,0.00017973,2]
[358139672,1744763432015,-500.0,0.00017973,2]
[358139674,1744763432023,-216.22526207,0.00017973,2]
[358139676,1744763432031,-4360.9102872,0.00017987,2]
[358139678,1744763432038,-151.0,0.00017989,2]
[358139679,1744763432046,-151.0,0.00017989,2]
[358139680,1744763432054,-668.65185757,0.00017989,2]
[358139681,1744763432063,-207.4,0.00017989,2]
[358139682,1744763432072,-300.0,0.00017999,2]
[358139684,1744763432081,-300.0,0.00017999,2]
[358139686,1744763432090,-222.99863543,0.00017999,2]
[358139688,1744763432099,-300.0,0.00017999,2]
[358139690,1744763432107,-500.0,0.00017999,2]
[358139692,1744763432116,-500.0,0.00017999,2]
[358139694,1744763432125,-500.0,0.00017999,2]
[358139696,1744763432134,-2074.54380565,0.00017999,2]
[358139698,1744763432143,-6374.38909674,0.00018,2]
[358139700,1744763432154,-6529.7559535,0.00018,2]
[358139702,1744763432166,-1661.39843761,0.00018,2]
[358139705,1744763432185,-7700.763059,0.00018,2]
[358139783,1744763437804,-932.58255358,0.00018,2]
[358139784,1744763437894,-472.97942744,0.00018,2]
[358139785,1744763437906,-452.371,0.00018,2]
[358139786,1744763437921,-416.10567011,0.00018,2]
[358139787,1744763437977,-2545.1295781,0.00018,2]
[358139796,1744763438223,-43984.00178,0.00018,2]
[358139798,1744763438239,-633.833,0.00018,2]
[358139826,1744763439856,-571.43588791,0.00018,2]
[358139827,1744763439965,-8324.87976559,0.00018,2]
[358139828,1744763440020,-5007.79398937,0.00018,2]
[358139829,1744763440130,-7800.0,0.00018,2]
[358139830,1744763440142,-3000.0,0.00018,2]
[358139831,1744763440152,-462.6535164,0.00018,2]
[358139832,1744763440184,-2083.5118822,0.00018,2]
[358139847,1744763442856,-1645.8934959,0.00018,2]
[358139848,1744763442867,-4865.1401764,0.00018,2]
[358139849,1744763442966,-1718.02,0.00018,2]
[358139850,1744763442977,-1710.0,0.00018,2]
[358139851,1744763443023,-558.99666842,0.00018,2]
[358139864,1744763444274,-2669.26,0.00018,2]
[358139865,1744763444291,-9402.76693792,0.00018,2]
[358139872,1744763445901,-399.58788103,0.00018,2]
[358139873,1744763445957,-2995.99425231,0.00018,2]
[358139874,1744763445970,-4142.15168,0.00018,2]
[358139880,1744763547842,151.0,0.00017658,2]
[358139882,1744763584779,250.0,0.00017,2]
[358139883,1744763625031,13.16297677,0.00017,2]
[358139884,1744763625060,236.83702323,0.00017,2]
[358139885,1744763631233,106.8169629,0.0001753,2]
[358139886,1744763631261,893.1830371,0.0001753,2]
[358139887,1744763667809,161.99,0.0001765,2]
[358139888,1744763842095,185.45532114,0.00017,2]
[358139892,1744764052099,200.0,0.0001731,7]
[358139893,1744764328500,183.0,0.000177,2]
[358139894,1744764338722,183.0,0.000177,2]
[358139895,1744764631443,1000.0,0.00017213,2]
[358139896,1744764632260,-271.54296096,0.00017781,2]
[358140105,1744764638315,-105.43703904,0.00017781,2]
[358140106,1744764638325,-250.0,0.00017789,2]
[358140107,1744764638335,-204.0384258,0.00017873,2]
[358140108,1744764638345,-105.75194506,0.00017886,2]
[358140109,1744764640235,-98.28648073,0.00017886,2]
[358140110,1744764640245,-665.2274,0.000179,2]
[358140111,1744764640254,-150.5271623,0.0001791,2]
[358140112,1744764640264,-150.0,0.00017973,2]
[358140113,1744764640274,-524.78436783,0.00017973,2]
[358140114,1744764640283,-4862.7329059,0.00017986,2]
[358140115,1744764640294,-300.0,0.00017988,2]
[358140116,1744764640304,-151.0,0.00017989,2]
[358140117,1744764640314,-151.0,0.00017989,2]
[358140118,1744764640323,-668.65185757,0.00017989,2]
[358140119,1744764640332,-207.4,0.00017989,2]
[358140120,1744764640342,-300.0,0.00017999,2]
[358140121,1744764640352,-500.0,0.00017999,2]
[358140122,1744764640362,-300.0,0.00017999,2]
[358140123,1744764640371,-300.0,0.00017999,2]
[358140124,1744764640380,-500.0,0.00017999,2]
[358140125,1744764640390,-251.35004608,0.00017999,2]
[358140126,1744764640399,-227823.00465036,0.00017999,2]
[358140127,1744764640409,-890.0,0.00018,2]
[358140128,1744764640418,-251443.80987433,0.00018,2]
[358140129,1744764640435,-950.09640007,0.00018,2]
[358140130,1744764640446,-1633.42262764,0.00018,2]
[358140131,1744764640457,-634.7,0.00018,2]
[358140176,1744764644311,-5336.7,0.00018,2]
[358140179,1744764644419,-475.6752,0.00018,2]
[358140181,1744764646056,-4233.35,0.00018,2]
[358140182,1744764646071,-963.26849218,0.00018,2]
[358140183,1744764646083,-392.29490377,0.00018,2]
[358140184,1744764646151,-24591.14918466,0.00018,2]
[358140185,1744764646163,-127648.03250844,0.00018,2]
[358140186,1744764646175,-1126.79000415,0.00018,2]
[358140187,1744764646198,-47629.41396327,0.00018,2]
[358140188,1744764646307,-14576.53376245,0.00018,2]
[358140200,1744764678838,5560.0,0.000179,5]
[358140201,1744764679720,409.0,0.000173,3]
[358140202,1744764721585,-203.29,0.00017601,2]
[358140203,1744764783442,140.36398613,0.00017339,2]
[358140204,1744764783473,59.63601387,0.00017339,2]
[358140205,1744764927747,354.5269629,0.00017466,2]
[358140206,1744764927781,438.8630371,0.00017466,2]
[358140207,1744764955360,161.99,0.00017322,2]
[358140208,1744765040814,189.598454,0.00017711,2]
[358140209,1744765046960,1174.23328979,0.00017999,5]
[358140210,1744765047003,1174.23328979,0.00017999,5]
[358140211,1744765047047,1174.2332898,0.00017999,5]
[358140212,1744765051662,157.0,0.000173,5]
[358140213,1744765120216,1791.60286491,0.00017234,2]
[358140214,1744765120240,2732.10713509,0.00017234,2]
[358140215,1744765193345,727.58,0.00015306,2]
[358140216,1744765313603,2414.98,0.00017175,2]
[358140217,1744765438216,250.0,0.00017,2]
[358140218,1744765478247,250.0,0.00017,2]
[358140219,1744765566819,244.53,0.00017175,2]
[358140220,1744765569888,250.0,0.00017175,2]
[358140221,1744765665645,-218.59596,0.0001757,2]
[358140222,1744765673989,1000.0,0.0001712,2]
[358140223,1744765685523,-286.71039,0.0001757,2]
[358140232,1744765768754,-597.0,0.0002595,30]
[358140233,1744765768797,-666.04,0.00027425,30]
[358140234,1744765768825,-162.24235146,0.00028,60]
[358140235,1744765768854,-2700.0,0.00029,30]
[358140236,1744765768881,-384.1720206,0.0003,120]
[358140237,1744765768906,-900.0,0.0003,31]
[358140238,1744765768931,-548.0,0.00030613,30]
[358140239,1744765768955,-260.95,0.000309,120]
[358140240,1744765768980,-1936.82586081,0.00031,32]
[358140241,1744765769013,-423.05181022,0.00032,120]
[358140242,1744765769037,-900.0,0.00032,33]
[358140243,1744765769065,-666.04,0.00032315,30]
[358140244,1744765769094,-412.68157109,0.00032876,120]
[358140245,1744765769117,-300.0,0.00032877,30]
[358140246,1744765769141,-1500.0,0.00032877,120]
[358140247,1744765769166,-2000.0,0.00032877,30]
[358140248,1744765769190,-2000.0,0.00032877,30]
[358140249,1744765769213,-2000.0,0.00032877,30]
[358140250,1744765769237,-2000.0,0.00032877,30]
[358140251,1744765769261,-2000.0,0.00032877,30]
[358140252,1744765769284,-2000.0,0.00032877,30]
[358140253,1744765769308,-2000.0,0.00032877,30]
[358140254,1744765769331,-2000.0,0.00032877,30]
[358140255,1744765769355,-2000.0,0.00032877,30]
[358140256,1744765769379,-2000.0,0.00032877,30]
[358140257,1744765769403,-2000.0,0.00032877,30]
[358140258,1744765769425,-2000.0,0.00032877,30]
[358140259,1744765769449,-1509.639094,0.00032877,30]
[358140260,1744765769479,-152.75,0.000335,31]
[358140261,1744765769506,-152.75,0.000335,31]
[358140262,1744765769534,-152.75,0.000335,31]
[358140263,1744765769561,-152.75,0.000335,31]
[358140264,1744765769802,-152.75,0.000335,31]
[358140265,1744765769833,-152.75,0.000335,31]
[358140266,1744765769862,-152.75,0.000335,31]
[358140267,1744765769890,-152.75,0.000335,31]
[358140268,1744765769918,-152.75,0.000335,31]
[358140269,1744765769946,-152.75,0.000335,31]
[358140270,1744765769974,-152.75,0.000335,31]
[358140271,1744765770000,-768.0,0.00033674,30]
[358140272,1744765770026,-633.127492,0.00033999,120]
[358140273,1744765770050,-2000.0,0.00033999,120]
[358140274,1744765770075,-519.457105,0.00033999,120]
[358140275,1744765770101,-2000.0,0.00035499,120]
[358140276,1744765770128,-398.41055245,0.00036767,30]
[358140277,1744765770153,-398.41055245,0.00036904,30]
[358140278,1744765770177,-300.0,0.00036986,30]
[358140279,1744765770203,-1447.595424,0.00036999,120]
[358140280,1744765770227,-398.41055245,0.00037068,30]
[358140281,1744765770252,-398.41055245,0.00037205,30]
[358140282,1744765770276,-666.04,0.00037205,30]
[358140283,1744765770300,-167.455306,0.0003726,30]
[358140284,1744765770325,-398.41055245,0.00037342,30]
[358140285,1744765770350,-398.41055245,0.00037507,30]
[358140286,1744765770380,-152.75,0.000376,31]
[358140287,1744765770408,-152.75,0.000376,31]
[358140288,1744765770434,-152.75,0.000376,31]
[358140289,1744765770463,-152.75,0.000376,31]
[358140290,1744765770490,-152.75,0.000376,31]
[358140291,1744765770516,-152.75,0.000376,31]
[358140292,1744765770543,-152.75,0.000376,31]
[358140293,1744765770571,-152.75,0.000376,31]
[358140294,1744765770598,-152.75,0.000376,31]
[358140295,1744765770624,-152.75,0.000376,31]
[358140296,1744765770652,-152.75,0.000376,31]
[358140297,1744765770680,-152.75,0.000376,31]
[358140298,1744765770708,-152.75,0.000376,31]
[358140299,1744765770735,-152.75,0.000376,31]
[358140300,1744765770762,-152.75,0.000376,31]
[358140301,1744765770790,-152.75,0.000376,31]
[358140302,1744765770816,-152.75,0.000376,31]
[358140303,1744765770843,-152.75,0.000376,31]
[358140304,1744765770870,-152.75,0.000376,31]
[358140305,1744765770897,-152.75,0.000376,31]
[358140306,1744765770924,-152.75,0.000376,31]
[358140307,1744765770951,-152.75,0.000376,31]
[358140308,1744765770975,-398.41055245,0.00037644,30]
[358140309,1744765770998,-398.41055245,0.00037808,30]
[358140310,1744765771022,-398.41055245,0.00037945,30]
[358140311,1744765771046,-181.01493972,0.00037999,120]
[358140312,1744765771074,-570.80168865,0.00038,120]
[358140313,1744765771099,-580.05951199,0.00038,120]
[358140314,1744765771122,-398.41055245,0.00038082,30]
[358140315,1744765771146,-398.41055245,0.00038247,30]
[358140316,1744765771170,-398.41055245,0.00038384,30]
[358140317,1744765771194,-573.29276832,0.000384,33]
[358140318,1744765771219,-504.0,0.00038904,30]
[358140319,1744765771242,-362.51470443,0.00039,120]
[358140320,1744765771266,-159.60664866,0.00039,120]
[358140321,1744765771290,-2890.88031309,0.00039,120]
[358140322,1744765771315,-208.0,0.0003958,53]
[358140323,1744765771340,-953.44526999,0.0003965,120]
[358140324,1744765771365,-514.30012953,0.0004,30]
[358140325,1744765771388,-3095.74185749,0.0004,30]
[358140326,1744765771412,-570.80168865,0.0004,120]
[358140327,1744765771436,-580.05951199,0.0004,120]
[358140328,1744765771460,-158.52943974,0.000408,120]
[358140329,1744765771484,-1908.82933,0.00040888,30]
[358140330,1744765771508,-1367.196,0.0004099,59]
[358140331,1744765771532,-1908.82933,0.00041088,30]
[358140332,1744765771557,-831.93,0.00041095,120]
[358140333,1744765771582,-300.0,0.00041096,30]
[358140334,1744765771607,-1908.82933,0.00041288,30]
[358140335,1744765771632,-150.0,0.00041365,120]
[358140336,1744765771656,-1908.82933,0.00041488,30]
[358140337,1744765771681,-229.010081,0.00041499,120]
[358140338,1744765771706,-150.0,0.00041565,120]
[358140339,1744765771736,-152.75,0.000416,31]
[358140340,1744765771764,-152.75,0.000416,31]
[358140341,1744765771793,-152.75,0.000416,31]
[358140342,1744765771822,-152.75,0.000416,31]
[358140343,1744765771854,-152.75,0.000416,31]
[358140344,1744765771883,-152.75,0.000416,31]
[358140345,1744765771913,-152.75,0.000416,31]
[358140346,1744765771942,-152.75,0.000416,31]
[358140347,1744765771969,-152.75,0.000416,31]
[358140348,1744765771999,-152.75,0.000416,31]
[358140349,1744765772026,-152.75,0.000416,31]
[358140350,1744765772054,-152.75,0.000416,31]
[358140351,1744765772083,-152.75,0.000416,31]
[358140352,1744765772111,-152.75,0.000416,31]
[358140353,1744765772138,-152.75,0.000416,31]
[358140354,1744765772165,-152.75,0.000416,31]
[358140355,1744765772193,-152.75,0.000416,31]
[358140356,1744765772220,-152.75,0.000416,31]
[358140357,1744765772247,-152.75,0.000416,31]
[358140358,1744765772433,-152.75,0.000416,31]
[358140359,1744765772461,-152.75,0.000416,31]
[358140360,1744765772488,-152.75,0.000416,31]
[358140361,1744765772512,-1908.82933,0.00041688,30]
[358140362,1744765772537,-150.0,0.0004186,120]
[358140363,1744765772561,-1908.82933,0.00041888,30]
[358140364,1744765772585,-150.0,0.00041947,120]
[358140365,1744765772609,-328.0,0.0004197,120]
[358140366,1744765772634,-1183.0,0.0004197,120]
[358140367,1744765772660,-1183.0,0.0004197,120]
[358140368,1744765772685,-328.0,0.0004197,120]
[358140369,1744765772711,-328.0,0.0004198,120]
[358140370,1744765772735,-1183.0,0.0004198,120]
[358140371,1744765772759,-328.0,0.0004198,120]
[358140372,1744765772783,-1183.0,0.0004198,120]
[358140373,1744765772806,-328.0,0.0004198,120]
[358140374,1744765772830,-1183.0,0.0004198,120]
[358140375,1744765772854,-336.03,0.0004198,120]
[358140376,1744765772878,-1186.02,0.0004198,120]
[358140377,1744765772903,-328.0,0.0004199,120]
[358140378,1744765772927,-1183.0,0.0004199,120]
[358140379,1744765772950,-1183.0,0.0004199,120]
[358140380,1744765772974,-328.0,0.0004199,120]
[358140381,1744765772999,-328.0,0.0004199,120]
[358140382,1744765773024,-1183.0,0.0004199,120]
[358140383,1744765773049,-328.0,0.0004199,120]
[358140384,1744765773075,-1183.0,0.0004199,120]
[358140385,1744765773102,-181.63,0.0004199,120]
[358140386,1744765773127,-753.96389895,0.0004199,120]
[358140387,1744765773153,-359.54515678,0.00042,120]
[358140388,1744765773179,-1083.13096978,0.00042,120]
[358140389,1744765773206,-1322.88635333,0.00042,60]
[358140390,1744765773231,-238.0,0.00042,30]
[358140391,1744765773259,-238.99018456,0.00042,30]
[358140392,1744765773287,-150.0,0.00042023,120]
[358140393,1744765773315,-1908.82933,0.00042088,30]
[358140394,1744765773342,-666.04,0.00042096,30]
[358140395,1744765773368,-150.0,0.00042109,120]
[358140396,1744765773395,-150.0,0.00042222,120]
[358140397,1744765773422,-1908.82933,0.00042288,30]
[358140398,1744765773449,-150.0,0.00042353,120]
[358140399,1744765773474,-831.93,0.00042465,120]
[358140400,1744765773503,-1908.82933,0.00042488,30]
[358140401,1744765773529,-150.0,0.00042641,120]
[358140402,1744765773554,-1908.82933,0.00042688,30]
[358140403,1744765773583,-150.0,0.00042694,120]
[358140404,1744765773610,-150.0,0.00042731,120]
[358140405,1744765773636,-150.0,0.00042804,120]
[358140406,1744765773661,-1908.82933,0.00042888,30]
[358140407,1744765773687,-748.13013904,0.00042998,120]
[358140408,1744765773713,-300.0,0.00043,120]
[358140409,1744765773739,-198.42,0.00043,31]
[358140410,1744765773764,-1141.60337731,0.00043,120]
[358140411,1744765773790,-1160.11902399,0.00043,120]
[358140412,1744765773816,-1908.82933,0.00043088,30]
[358140413,1744765773843,-150.0,0.00043156,120]
[358140414,1744765773868,-500.0,0.00043208,120]
[358140415,1744765773894,-1908.82933,0.00043288,30]
[358140416,1744765773919,-150.0,0.000433,120]
[358140417,1744765773945,-510.77708366,0.00043408,120]
[358140418,1744765773970,-150.0,0.00043442,120]
[358140419,1744765774019,-1908.82933,0.00043488,30]
[358140420,1744765774044,-175.34772299,0.000435,120]
[358140421,1744765774071,-2000.0,0.00043561,120]
[358140422,1744765774098,-150.0,0.0004361,120]
[358140423,1744765774126,-150.0,0.00043663,120]
[358140424,1744765774154,-1908.82933,0.00043688,30]
[358140425,1744765774180,-806.95620605,0.000437,120]
[358140426,1744765774205,-206.39592131,0.000438,120]
[358140427,1744765774231,-831.93,0.00043835,120]
[358140428,1744765774258,-700.0,0.00043835,120]
[358140429,1744765774285,-700.0,0.00043835,120]
[358140430,1744765774311,-700.0,0.00043835,120]
[358140431,1744765774339,-700.0,0.00043835,120]
[358140432,1744765774370,-693.95917931,0.00043835,120]
[358140433,1744765774398,-2000.0,0.00043835,120]
[358140434,1744765774427,-252.54397004,0.00043836,120]
[358140435,1744765774452,-589.26926342,0.00043836,120]
[358140436,1744765774479,-158.08452694,0.0004384,120]
[358140437,1744765774505,-158.08452694,0.0004384,120]
[358140438,1744765774531,-158.08452694,0.0004384,120]
[358140439,1744765774555,-158.08452694,0.0004384,120]
[358140440,1744765774582,-158.08452694,0.0004384,120]
[358140441,1744765774608,-158.08,0.0004384,120]
[358140442,1744765774632,-158.08452694,0.0004384,120]
[358140443,1744765774657,-158.08452694,0.0004384,120]
[358140444,1744765774684,-158.08452694,0.0004384,120]
[358140445,1744765774710,-158.08452694,0.0004384,120]
[358140446,1744765774736,-158.08452694,0.0004384,120]
[358140447,1744765774761,-158.08452694,0.0004384,120]
[358140448,1744765774788,-158.08452694,0.0004384,120]
[358140449,1744765774813,-158.08452694,0.0004384,120]
[358140450,1744765774851,-158.08452694,0.0004384,120]
[358140451,1744765774879,-158.08452694,0.0004384,120]
[358140452,1744765775105,-158.08452694,0.0004384,120]
[358140453,1744765775132,-158.08452694,0.0004384,120]
[358140454,1744765775157,-158.08452694,0.0004384,120]
[358140455,1744765775182,-158.08,0.0004384,120]
[358140456,1744765775207,-230.72669981,0.0004384,120]
[358140457,1744765775232,-230.72669981,0.0004384,120]
[358140458,1744765775257,-230.72669981,0.0004384,120]
[358140459,1744765775282,-230.72669981,0.0004384,120]
[358140460,1744765775311,-230.72669981,0.0004384,120]
[358140461,1744765775337,-230.72669981,0.0004384,120]
[358140462,1744765775362,-230.72669981,0.0004384,120]
[358140463,1744765775388,-230.72669981,0.0004384,120]
[358140464,1744765775413,-230.72669981,0.0004384,120]
[358140465,1744765775438,-230.72669981,0.0004384,120]
[358140466,1744765775463,-230.72669981,0.0004384,120]
[358140467,1744765775489,-230.72669981,0.0004384,120]
[358140468,1744765775514,-230.72669981,0.0004384,120]
[358140469,1744765775540,-230.72669981,0.0004384,120]
[358140470,1744765775565,-230.72669981,0.0004384,120]
[358140471,1744765775594,-230.72669981,0.0004384,120]
[358140472,1744765775619,-230.72669981,0.0004384,120]
[358140473,1744765775645,-230.72669981,0.0004384,120]
[358140474,1744765775671,-230.72669981,0.0004384,120]
[358140475,1744765775697,-230.72,0.0004384,120]
[358140476,1744765775724,-538.36229955,0.0004384,120]
[358140477,1744765775749,-538.36229955,0.0004384,120]
[358140478,1744765775775,-538.36229955,0.0004384,120]
[358140479,1744765775800,-538.36229955,0.0004384,120]
[358140480,1744765775828,-538.36229955,0.0004384,120]
[358140481,1744765775855,-538.36229955,0.0004384,120]
[358140482,1744765775881,-538.36229955,0.0004384,120]
[358140483,1744765775911,-538.36229955,0.0004384,120]
[358140484,1744765775936,-538.36229955,0.0004384,120]
[358140485,1744765775961,-538.36229955,0.0004384,120]
[358140486,1744765775987,-538.36229955,0.0004384,120]
[358140487,1744765776015,-538.36229955,0.0004384,120]
[358140488,1744765776042,-538.36229955,0.0004384,120]
[358140489,1744765776068,-538.36229955,0.0004384,120]
[358140490,1744765776095,-538.36229955,0.0004384,120]
[358140491,1744765776120,-538.36229955,0.0004384,120]
[358140492,1744765776146,-538.36229955,0.0004384,120]
[358140493,1744765776171,-538.36229955,0.0004384,120]
[358140494,1744765776196,-538.36229955,0.0004384,120]
[358140495,1744765776221,-538.36,0.0004384,120]
[358140496,1744765776246,-245.59265169,0.0004384,120]
[358140497,1744765776271,-245.59265169,0.0004384,120]
[358140498,1744765776296,-245.59265169,0.0004384,120]
[358140499,1744765776321,-245.59265169,0.0004384,120]
[358140500,1744765776346,-245.59265169,0.0004384,120]
[358140501,1744765776370,-245.59265169,0.0004384,120]
[358140502,1744765776395,-245.59265169,0.0004384,120]
[358140503,1744765776419,-245.59265169,0.0004384,120]
[358140504,1744765776443,-245.59265169,0.0004384,120]
[358140505,1744765776468,-245.59265169,0.0004384,120]
[358140506,1744765776497,-245.59265169,0.0004384,120]
[358140507,1744765776522,-245.59265169,0.0004384,120]
[358140508,1744765776546,-245.59265169,0.0004384,120]
[358140509,1744765776570,-245.59265169,0.0004384,120]
[358140510,1744765776595,-245.59265169,0.0004384,120]
[358140511,1744765776619,-245.59265169,0.0004384,120]
[358140512,1744765776644,-245.59265169,0.0004384,120]
[358140513,1744765776668,-167.455306,0.00043929,60]
[358140514,1744765776699,-226180.10257183,0.0004399,120]